{"text_format":"1","workbook":"xlsx","n_sheets":20,"sheets":["титульный лист","ПП 2017","ПП 2019 ","ПП 2017-2019","Расчет_объемы ","ПМ оборудования 2017","ПМ оборудования 2019","расход ээ","расчет ээ на общепр.нужды","Хар-ка водопров сетей","Покупка воды","Транспортировка воды","вода на собст.нужды","Реализация услуг","Расчет потребления населением","Расчет на полив и др.","показатель надежности","План мероприятий 2017","План мероприятий 2018 ","План мероприятий 2019"],"not_rendered":{"charts":0,"images":6,"macros":0,"external_links":4,"defined_names":21,"comments":0,"pivot_tables":0},"unopened":[],"bounds":{"document_bytes":16777216,"sheet_cells":100000,"rows_first":2000,"rows_last":500,"rows_between":2000,"halvings":0,"cell_chars":16384,"cell_head_chars":4096},"cells_cut":0,"cells_raw":0,"read":"whole","date_system":"1900"}

{"sheet":"титульный лист","index":0,"n_rows":62,"n_cols":10,"rows_kept":62,"cut":false,"hidden":false,"merged":[[40,3,40,12],[61,0,61,4],[24,0,24,14],[25,9,26,14],[39,6,39,8],[39,1,39,2],[29,1,29,14],[36,1,36,2],[37,1,37,2],[37,6,37,8],[32,1,32,14],[33,1,33,14]]}
[]
["Утверждаю :",null,null,null,null,null,null,null,null,"Утверждаю :"]
["Руководитель предприятия",null,null,null,null,null,null,null,null,"Комитет по тарифам и ценовой политике"]
[null,null,null,null,null,null,null,null,null,"Ленинградской области"]
[null,null,null,null,null,null,null,null,null,"(191311, Санкт-Петербург, ул.Смольного, д.3)"]
[]
["\"             \"",null,null,"2018 год",null,null,null,null,null,"приказ ЛенРТК от _______________________ № _______"]
["МП"]
[]
[]
[]
[]
[]
[]
[]
[]
[]
[]
[]
[]
[]
[]
[]
[]
["Производственная программа  в сфере водоснабжения на ______2019 год________________________"]
[]
[]
[]
[]
[null,"                                                                            (наименование организации,ее местонахождение)"]
[]
[]
[]
[null,"(адрес фактического местонахождения)"]
[]
[]
[]
[null,"сфера",null,null,null,null,"холодное водоснабжение"]
[]
[null,"вид товара",null,null,null,null,"питьевая вода"]
[]
[]
[]
[]
[]
[]
[]
[]
[]
[]
[]
[]
[]
[]
[]
[]
[]
[]
[]
[]
[]
["Приложение:  на ________________ листах."]

{"sheet":"ПП 2017","index":1,"n_rows":66,"n_cols":18,"rows_kept":66,"cut":false,"hidden":false,"merged":[[0,15,0,16],[10,10,10,11],[9,12,9,14],[10,12,11,12],[10,13,10,14],[9,15,9,17],[10,15,11,15],[10,16,10,17],[9,9,9,11],[10,9,11,9],[65,0,65,10],[7,6,7,17],[8,6,9,8],[7,3,9,5],[6,3,6,17],[8,9,8,17],[6,0,11,0],[6,1,11,1],[6,2,11,2],[10,4,10,5],[10,3,11,3],[10,6,11,6],[10,7,10,8]]}
[null,null,null,null,null,null,null,null,null,null,null,null,null,null,null,"Таблица не подлежит распечатке"]
[]
[]
["Раздел 1. Обоснование обеспечения прогнозируемого объема и качества услуг в сфере водоснабжения  за  2017 год"]
[]
[]
["№ п/п","Показатели","Ед. изм.","2017 год"]
[null,null,null,"предусмотрено в тарифе",null,null,"факт по данным организации"]
[null,null,null,null,null,null,"всего по организации",null,null,"в том числе по ЦСВ"]
[null,null,null,null,null,null,null,null,null,"МО 1",null,null,"МО 2",null,null,"МО 3"]
[null,null,null,"Всего в год","в том числе",null,"Всего в год","в том числе",null,"Всего в год","в том числе",null,"Всего в год","в том числе",null,"Всего в год","в том числе"]
[null,null,null,null,"с 01.01.2017 по 30.06.2017","с 01.07.2017 по 31.12.2017",null,{"$f":"E12","v":"с 01.01.2017 по 30.06.2017"},{"$f":"F12","v":"с 01.07.2017 по 31.12.2017"},null,{"$f":"H12","v":"с 01.01.2017 по 30.06.2017"},{"$f":"I12","v":"с 01.07.2017 по 31.12.2017"},null,{"$f":"K12","v":"с 01.01.2017 по 30.06.2017"},{"$f":"L12","v":"с 01.07.2017 по 31.12.2017"},null,{"$f":"N12","v":"с 01.01.2017 по 30.06.2017"},{"$f":"O12","v":"с 01.07.2017 по 31.12.2017"}]
[1,2,3,4,5,6,7,8,9,10,11,12,13,14,15,16,17,18]
["1.","Поднято воды  насосными станциями 1-го подъема, всего","тыс. м3"]
[null,"в том числе:"]
["1.1."," - из поверхностных водоисточников ","тыс. м3"]
["1.2."," - из подземных водоисточников ","тыс. м3"]
["2.","Водоснабжение с использованием технической воды, всего","тыс. м3"]
[null,"в том числе:"]
[" 2.1","полученной от других водоканалов","тыс. м3"]
["3.","Пропущено воды   через водопроводные очистные сооружения              ","тыс. м3"]
["4.","Собственные нужды (технологические нужды) <*>   ","тыс. м3"]
[null,"то  же  в % от поднятой воды","%     "]
[" 4.1","Водопроводных станций , в том числе:","тыс. м3"]
["4.1.1.","сброшено в естественные водоемы ","тыс. м3"]
["4.1.2.","сброшено в  канализацию","тыс. м3"]
["4.2.","Водозаборных  сооружений из  подземных водоисточников                   ","тыс. м3"]
[null,"то  же  в % от поднятой воды,     ","%     "]
["4.3.","Водопроводных    сетях        ","тыс. м3"]
[null,"то  же  в % от поднятой воды     ","%     "]
["5.","Получено воды со стороны ","тыс. м3"]
["6.","Подано  воды  в водопроводную сеть, всего      ","тыс. м3"]
[null,"в том числе:"]
["6.1."," -собственными насосами  ","тыс. м3"]
["6.2."," -самотеком               ","тыс. м3"]
["7.","Потери  воды  в водопроводных сетях            ","тыс. м3"]
[null,"то  же  в % от воды, поданной в сеть    ","%     "]
["8.","Отпущено  воды  из водопроводной сети, всего :              ","тыс. м3"]
[null,"в том числе:"]
["8.1."," -на производственно-хозяйственные нужды            ","тыс. м3"]
["8.2."," -на нужды собственных подразделений (цехов)               ","тыс. м3"]
["9.","Товарной воды, всего","тыс. м3"]
[null,"в том числе:"]
["9.1.","Управляющим  компаниям,ТСЖ и др. (по населению), всего","тыс. м3"]
[null,"в том числе:"]
[" 9.1.1"," -по общедомовым приборам учета"]
[" 9.2","Населению, всего","тыс. м3"]
[null,"в том числе:"]
[" 9.2.1","по нормативам","тыс. м3"]
[" 9.2.2","по индивидуальным приборам учета","тыс. м3"]
[" 9.2.3"," по общедомовым приборам учета","тыс. м3"]
[" 9.3","Бюджетным потребителям                            ","тыс. м3"]
[" 9.4","Предприятиям, оказывающим услуги водоснабжения, всего","тыс. м3"]
[null,"в том числе:"]
[" 9.4.1","организации 1","тыс. м3"]
[" 9.4.2","организации 2","тыс. м3"]
[" 9.4.3","организации 3","тыс. м3"]
[null,"и т.д."]
[" 9.5","Иным потребителям   ","тыс. м3"]
["10.","Расход электроэнергии, всего","тыс.кВт.ч"]
[null,"в том числе :"]
[" 10.1","расход электроэнергии на технологические нужды","тыс.кВт.ч"]
["10.1.1","Удельный расход электроэнергии на технологические нужды","кВтч/м3"]
[" 10.2","расход электроэнергии на общепроизводственные нужды",{"$f":"C62","v":"тыс.кВт.ч"}]
[]
["<*> Не более 10% к подъему воды"]

{"sheet":"ПП 2019 ","index":2,"n_rows":65,"n_cols":15,"rows_kept":65,"cut":false,"hidden":false,"merged":[[9,13,9,14],[0,12,0,13],[9,4,9,5],[6,0,10,0],[6,1,10,1],[6,2,10,2],[6,3,6,14],[7,3,8,5],[7,6,7,14],[8,6,8,8],[8,9,8,11],[9,3,10,3],[8,12,8,14],[9,6,10,6],[9,7,9,8],[9,9,10,9],[9,10,9,11],[64,0,64,10],[9,12,10,12]]}
[null,null,null,null,null,null,null,null,null,null,null,null,"Таблица не подлежит распечатке"]
[]
[]
["Раздел 1. Обоснование обеспечения прогнозируемого объема и качества услуг в сфере водоснабжения  на  2019 год"]
[]
[]
["№ п/п","Показатели","Ед. изм.","плановый период (2019 год)"]
[null,null,null,"всего по организации",null,null,"в том числе по ЦСВ"]
[null,null,null,null,null,null,"МО 1",null,null,"МО 2",null,null,"МО 3"]
[null,null,null,"Всего в год","в том числе",null,"Всего в год","в том числе",null,"Всего в год","в том числе",null,"Всего в год","в том числе"]
[null,null,null,null,"с 01.01.2019 по 30.06.2019","с 01.07.2019 по 31.12.2019",null,{"$f":"E11","v":"с 01.01.2019 по 30.06.2019"},{"$f":"H11","v":"с 01.01.2019 по 30.06.2019"},null,{"$f":"H11","v":"с 01.01.2019 по 30.06.2019"},{"$f":"I11","v":"с 01.01.2019 по 30.06.2019"},null,{"$f":"K11","v":"с 01.01.2019 по 30.06.2019"},{"$f":"N11","v":"с 01.01.2019 по 30.06.2019"}]
[1,2,3,4,5,6,7,8,9,10,11,12,13,14,15]
["1.","Поднято воды  насосными станциями 1-го подъема, всего","тыс. м3"]
[null,"в том числе:"]
["1.1."," - из поверхностных водоисточников ","тыс. м3"]
["1.2."," - из подземных водоисточников ","тыс. м3"]
[" 2.","Водоснабжение с использованием технической воды, всего","тыс. м3"]
[null,"в том числе:"]
[" 2.1","полученной от других водоканалов","тыс. м3"]
["3.","Пропущено воды   через водопроводные очистные сооружения              ","тыс. м3"]
["4.","Собственные нужды (технологические нужды) <*>   ","тыс. м3"]
[null,"то  же  в % от поднятой воды","%     "]
[" 4.1","Водопроводных станций , в том числе:","тыс. м3"]
[" 4.1.1","сброшено в естественные водоемы ","тыс. м3"]
[" 4.1.2","сброшено в  канализацию","тыс. м3"]
[" 4.2","Водозаборных  сооружений из  подземных водоисточников                   ","тыс. м3"]
[null,"то  же  в % от поднятой воды,     ","%     "]
[" 4.3","Водопроводных    сетях        ","тыс. м3"]
[null,"то  же  в % от поднятой воды     ","%     "]
["5.","Получено воды со стороны ","тыс. м3"]
["6.","Подано  воды  в водопроводную сеть, всего      ","тыс. м3"]
[null,"в том числе:"]
[" 6.1"," -собственными насосами  ","тыс. м3"]
[" 6.2"," -самотеком               ","тыс. м3"]
["7.","Потери  воды  в водопроводных сетях            ","тыс. м3"]
[null,"то  же  в % от воды, поданной в сеть    ","%     "]
["8.","Отпущено  воды  из водопроводной сети, всего :              ","тыс. м3"]
[null,"в том числе:"]
[" 8.1"," -на производственно-хозяйственные нужды            ","тыс. м3"]
[" 8.2"," -на нужды собственных подразделений (цехов)               ","тыс. м3"]
[" 9.","Товарной воды, всего","тыс. м3"]
[null,"в том числе:"]
[" 9.1","Управляющим  компаниям,ТСЖ и др. (по населению), всего","тыс. м3"]
[null,"в том числе:"]
[" 9.1.1"," - по общедомовым приборам учета"]
[" 9.2","Населению, всего","тыс. м3"]
[null,"в том числе:"]
[" 9.2.1","по нормативам","тыс. м3"]
[" 9.2.2","по индивидуальным приборам учета","тыс. м3"]
[" 9.2.3"," по общедомовым приборам учета","тыс. м3"]
[" 9.3","Бюджетным потребителям                            ","тыс. м3"]
[" 9.4","Предприятиям, оказывающим услуги водоснабжения, всего","тыс. м3"]
[null,"в том числе:"]
[" 9.4.1","организации 1","тыс. м3"]
[" 9.4.2","организации 2","тыс. м3"]
[" 9.4.3","организации 3","тыс. м3"]
[null,"и т.д."]
[" 9.5","Иным потребителям   ","тыс. м3"]
["10.","Расход электроэнергии, всего","тыс.кВт.ч"]
[null,"в том числе :"]
[" 10.1","расход электроэнергии на технологические нужды","тыс.кВт.ч"]
["10.1.1","Удельный расход электроэнергии на технологические нужды","кВтч/м3"]
[" 10.2","расход электроэнергии на общепроизводственные нужды",{"$f":"C61","v":"тыс.кВт.ч"}]
[]
["<*> Не более 10% к подъему воды"]

{"sheet":"ПП 2017-2019","index":3,"n_rows":78,"n_cols":9,"rows_kept":78,"cut":false,"hidden":false,"merged":[[5,0,7,0],[5,1,7,1],[5,2,7,2],[77,1,77,4],[74,3,74,4],[71,3,71,4],[64,0,64,8],[65,0,65,8],[6,3,7,3],[6,5,7,5],[6,7,7,7],[6,8,7,8],[6,6,7,6],[6,4,7,4],[5,14,7,14],[12,11,13,11],[5,3,5,4],[5,5,5,6],[5,7,5,8],[12,13,13,13],[12,14,13,14],[12,12,13,12]]}
[null,null,null,null,null,null,null,null,"Приложение 1"]
[null,null,null,null,null,null,null,null,"Таблица 1.1."]
[null,"Раздел 1. Обоснование обеспечения прогнозируемого объема и качества услуг в сфере водоснабжения "]
[]
[]
["№ п/п","Показатели","Ед. изм.","Отчетный период (2017 год)",null,"Базовый  период (2018 год)",null,"Плановый период (2019 год)"]
[null,null,null,"Предусмотрено в тарифе","Факт по данным организации","Предусмотрено в тарифе","Ожидаемое исполнение по данным организации","Данные организации","Принято ЛенРТК"]
[]
[1,2,3,4,5,6,7,8,9]
[" 1.","Поднято воды  насосными станциями 1-го подъема, всего","тыс. м3"]
[null,"в том числе:"]
[" 1.1"," - из поверхностных водоисточников ","тыс. м3"]
[" 1.2"," - из подземных водоисточников ","тыс. м3"]
[" 2.","Водоснабжение с использованием технической воды, всего","тыс. м3"]
[null,"в том числе:"]
[" 2.1","полученной от других водоканалов","тыс. м3"]
["3.","Пропущено воды   через водопроводные очистные сооружения              ","тыс. м3"]
["4.","Собственные нужды (технологические нужды) <*>   ","тыс. м3"]
[null,"то  же  в % от поднятой воды    ","%     "]
[" 4.1","Водопроводных станций , в том числе:","тыс. м3"]
[" 4.1.1","сброшено в естественные водоемы ","тыс. м3"]
[" 4.1.2","сброшено в  канализацию","тыс. м3"]
[" 4.2","Водозаборных  сооружений из  подземных водоисточников                   ","тыс. м3"]
[null,"то  же  в % от поднятой воды","%     "]
[" 4.3","Водопроводных    сетях        ","тыс. м3"]
[null,"то  же  в % от поднятой воды     ","%     "]
["5.","Получено воды со стороны ","тыс. м3"]
["6.","Подано  воды  в водопроводную сеть, всего      ","тыс. м3"]
[null,"в том числе:"]
[" 6.1"," -собственными насосами  ","тыс. м3"]
[" 6.2"," -самотеком               ","тыс. м3"]
["7.","Потери  воды  в водопроводных сетях            ","тыс. м3"]
[null,"то  же  в % от воды, поданной в сеть    ","%     "]
["8.","Отпущено  воды  из водопроводной сети, всего :              ","тыс. м3"]
[null,"в том числе:"]
[" 8.1"," -на производственно-хозяйственные нужды            ","тыс. м3"]
[" 8.2"," -на нужды собственных подразделений (цехов)               ","тыс. м3"]
["9.","Товарной воды, всего","тыс. м3"]
[null,"в том числе:"]
[" 9.1","Управляющим  компаниям,ТСЖ и др. (по населению), всего","тыс. м3"]
[null,"в том числе:"]
[" 9.1.1"," по общедомовым приборам учета",{"$f":"C40","v":"тыс. м3"}]
[" 9.2","Населению, всего","тыс. м3"]
[null,"в том числе:"]
[" 9.2.1","по нормативам","тыс. м3"]
[" 9.2.2 ","по индивидуальным приборам учета","тыс. м3"]
[" 9.2.3"," по общедомовым приборам учета","тыс. м3"]
[" 9.3","Бюджетным потребителям                            ","тыс. м3"]
[" 9.4","Предприятиям, оказывающим услуги водоснабжения, всего","тыс. м3"]
[null,"в том числе:"]
[" 9.4.1","организации 1","тыс. м3"]
[" 9.4.2","организации 2","тыс. м3"]
[" 9.4.3","организации 3","тыс. м3"]
[null,"и т.д."]
[" 9.5","Иным потребителям   ","тыс. м3"]
["10.","Расход электроэнергии, всего","тыс.кВт.ч"]
[null,"в том числе :"]
[" 10.1","расход электроэнергии на технологические нужды","тыс.кВт.ч"]
["10.1.1","Удельный расход электроэнергии на технологические нужды","кВтч/м3"]
[" 10.2","расход электроэнергии на общепроизводственные нужды",{"$f":"C58","v":"тыс.кВт.ч"}]
[]
[]
[]
[]
["<*> Не более 10% к подъему воды"]
[]
[]
[]
["М.П."]
[]
[]
[null,"Должность руководителя, подпись",null,"Фамилия, имя, отчество"]
[]
[null,null,"                             "]
[null,"Должность исполнителя, подпись",null,"Фамилия, имя, отчество"]
[]
[]
[null,"контактный тел. с кодом города, контактный E-mail"]

{"sheet":"Расчет_объемы ","index":4,"n_rows":27,"n_cols":9,"rows_kept":27,"cut":false,"hidden":false,"merged":[[0,7,0,8],[1,7,1,8],[2,1,2,8],[4,3,4,8],[11,3,11,6]]}
[null,null,null,null,null,null,null,"Приложение 1"]
[null,null,null,null,null,null,null,"Таблица 1.1.1"]
[null,"Определение объема отпуска воды, принятых сточных вод, используемых для расчета тарифов в сфере водоснабжения и водоотведения"]
[]
[null,"1.","Водоснабжение","тыс.куб.м."]
[null,null,null,"2013 *","2014 *","2015 *","2016 *","2017 *","2019**"]
[null,null,"Расчет согласно п. 5 главы II Методических указаний  по фактическим данным Организации                                                                                                                                          Объем отпускаемой воды (товарной), всего                   "]
[null,null,"Объем, отпускаемый воды новым абонентам, за вычетом абонентов, водоснабжение которых прекращено"]
[null,null,"Изменение объема отпускаемой воды, связанное с пересмотром нормативов"]
[null,null,"План Организации (согласно производственной программы, калькуляции)"]
[null,null,"Принято ЛенРТК"]
[null,"2.","Водоотведение"]
[null,null,"Расчет согласно п. 5 главы II Методических указаний  по фактическим данным Организации                                                                                                                              Объем принятых сточных вод (товарных), всего"]
[null,null,"Объем, принятых сточных вод от новых абонентов, за вычетом абонентов, водоотведение которых прекращено"]
[null,null,"Изменение объема принятых сточных вод, связанное с пересмотром нормативов"]
[null,null,"План Организации (согласно производственной программы, калькуляции)"]
[null,null,"Принято ЛенРТК"]
[]
[null,null,"*2013, 2014, 2015, 2016, 2017 года фактические данные Организации"]
[null,null,"** Согласно пунктам 4, 5 и 8 Методических указаний объем воды, отпускаемой (планируемой к отпуску) абонентам, определяется отдельно в отношении питьевой воды, технической воды, а также объем принятых сточных вод от абонентов по формулам:\n"]
[null,null,null,"(1.)"]
[null,null,null,"(1.1)"]
[null,null,"где:"]
[null,null," - объем воды, отпускаемой абонентам (планируемой к отпуску) в году i, тыс. куб. м;"]
[null,null,"- расчетный объем воды, отпускаемой новым абонентам, подключившимся к централизованной системе водоснабжения в году i, за вычетом потребления воды абонентами, водоснабжение которых прекращено (планируется прекратить), тыс. куб. м. Указанная величина может принимать, в том числе, отрицательные значения;"]
[null,null,"- планируемое в году i изменение (снижение) объема воды, отпускаемой гарантирующей организацией абонентам по отношению к году i-1, связанное с изменением нормативов потребления воды, тыс. куб. м. Указанная величина может принимать как положительные, так и отрицательные значения;"]
[null,null,"- темп изменения (снижения) потребления воды. В случае, если данные об объеме отпуска воды в предыдущие годы недоступны, темп изменения (снижения) потребления воды рассчитывается без учета этих лет. Темп изменения (снижения) потребления воды не должен превышать 5 процентов в год."]

{"sheet":"ПМ оборудования 2017","index":5,"n_rows":54,"n_cols":15,"rows_kept":54,"cut":false,"hidden":false,"merged":[[10,4,10,14],[50,6,50,8],[53,6,53,8],[7,11,8,11],[7,12,8,12],[7,13,8,13],[7,14,8,14],[24,4,24,14],[38,4,38,14],[4,3,4,14],[7,3,8,3],[7,4,8,4],[7,5,8,5],[7,6,8,6],[7,7,8,7],[7,8,7,10]]}
[null,null,null,null,null,null,null,null,null,null,null,null,null,null,"Приложение 1"]
[null,null,null,null,null,null,null,null,null,null,null,null,null,null,"Таблица 1.2."]
[]
[]
[null,null,null,"Перечень насосного оборудования по объектам водоснабжения (факт 2017 года)"]
[]
[]
[null,null,null,"№ п/п","Наименование оборудования и его местоположение","Марка насоса","Количество насосов находящихся в работе, шт","Количество насосов, находящихся в резерве, шт","Характеристика оборудования",null,null,"Время работы оборудования в год, час","КПД насосов, %","КПД электродвигателя (по паспорту), %","Расход электроэнергии на технологические нужды, т.кВт.ч"]
[null,null,null,null,null,null,null,null,"Производительность, м3/час","Напор, м","Мощность электродвигателя, кВт"]
[null,null,null,1,2,3,4,5,6,7,8,9,10,11,12]
[null,null,null,null,"Муниципальный район: МО 1"]
[null,null,null,1,"Водозаборы (скважины,насосные станции)","х","х","х"]
[null,null,null,"1.1"]
[null,null,null,"1.2"]
[null,null,null,"…","…"]
[null,null,null,2,"Системы очистки воды (насосы-дозаторы раствора хлора и др.)","х","х","х"]
[null,null,null,"2.1"]
[null,null,null,"2.2"]
[null,null,null,"…","…"]
[null,null,null,3,"Транспортировка воды (насосные, повысительные станции)","х","х","х"]
[null,null,null,"3.1"]
[null,null,null,"3.2"]
[null,null,null,"…","…"]
[null,null,null,"0","Итого по МО","х",null,null,"х","х","х","х","х","х"]
[null,null,null,null,"Муниципальный район: МО 2"]
[null,null,null,1,"Водозаборы (скважины, насосные станции)","х","х","х"]
[null,null,null,"1.1"]
[null,null,null,"1.2"]
[null,null,null,"…","…"]
[null,null,null,2,"Системы очистки воды (насосы-дозаторы раствора хлора и др.)","х","х","х"]
[null,null,null,"2.1"]
[null,null,null,"2.2"]
[null,null,null,"…","…"]
[null,null,null,3,"Транспортировка воды (насосные, повысительные станции)","х","х","х"]
[null,null,null,"3.1"]
[null,null,null,"3.2"]
[null,null,null,"…","…"]
[null,null,null,null,"Итого по МО","х",null,null,"х","х","х","х","х","х"]
[null,null,null,null,"ИТОГО   ПО   ОРГАНИЗАЦИИ:"]
[null,null,null,"1","Подъем воды","х",null,null,"х","х","х","х","х","х"]
[null,null,null,2,"Очистка воды","х",null,null,"х","х","х","х","х","х"]
[null,null,null,3,"Транспортировка воды ","х",null,null,"х","х","х","х","х","х"]
[null,null,null,null,"В целом по организации","х",null,null,"х","х","х","х","х","х"]
[]
[null,null,null,"Примечание: Данные, предусмотренные организацией в графе 12, должны быть подтверждены расчетом"]
[]
[]
[]
[null,null,null,"М.П."]
[]
[null,null,null,null,"Должность руководителя, подпись",null,"Фамилия, имя, отчество"]
[]
[null,null,null,null,null,"                             "]
[null,null,null,null,"Должность исполнителя, подпись",null,"Фамилия, имя, отчество"]

{"sheet":"ПМ оборудования 2019","index":6,"n_rows":54,"n_cols":16,"rows_kept":54,"cut":false,"hidden":false,"merged":[[50,6,50,9],[53,6,53,9],[7,14,8,14],[7,15,8,15],[10,4,10,15],[24,4,24,15],[38,4,38,15],[4,3,4,15],[7,3,8,3],[7,4,8,4],[7,5,8,5],[7,6,8,6],[7,7,8,7],[7,8,8,8],[7,9,7,11],[7,12,8,12],[7,13,8,13]]}
[null,null,null,null,null,null,null,null,null,null,null,null,null,null,null,"Приложение 1"]
[null,null,null,null,null,null,null,null,null,null,null,null,null,null,null,"Таблица 1.3."]
[]
[]
[null,null,null,"Перечень насосного оборудования по объектам водоснабжения (план 2019 года)"]
[]
[]
[null,null,null,"№ п/п","Наименование оборудования и его местоположение","Марка насоса","Количество насосов находящихся в работе, шт","Количество насосов, находящихся в резерве, шт","Объем воды в год, т.м3","Характеристика оборудования",null,null,"Время работы оборудования в год, час","КПД насосов, %","КПД электродвигателя (по паспорту), %","Расход электроэнергии на технологические нужды, т.кВт.ч"]
[null,null,null,null,null,null,null,null,null,"Производительность, м3/час","Напор, м","Мощность электродвигателя, кВт"]
[null,null,null,1,2,3,4,5,6,7,8,9,10,11,12,13]
[null,null,null,null,"Муниципальный район: МО 1"]
[null,null,null,1,"Водозаборы (скважины,насосные станции)","х","х","х"]
[null,null,null,"1.1"]
[null,null,null,"1.2"]
[null,null,null,"…","…"]
[null,null,null,2,"Системы очистки воды (насосы-дозаторы раствора хлора и др.)","х","х","х"]
[null,null,null,"2.1"]
[null,null,null,"2.2"]
[null,null,null,"…","…"]
[null,null,null,3,"Транспортировка воды (насосные, повысительные станции)","х","х","х"]
[null,null,null,"3.1"]
[null,null,null,"3.2"]
[null,null,null,"…","…"]
[null,null,null,"0","Итого по МО","х",null,null,null,"х","х","х","х","х","х"]
[null,null,null,null,"Муниципальный район: МО 2"]
[null,null,null,1,"Водозаборы (скважины, насосные станции)","х","х","х"]
[null,null,null,"1.1"]
[null,null,null,"1.2"]
[null,null,null,"…","…"]
[null,null,null,2,"Системы очистки воды (насосы-дозаторы раствора хлора и др.)","х","х","х"]
[null,null,null,"2.1"]
[null,null,null,"2.2"]
[null,null,null,"…","…"]
[null,null,null,3,"Транспортировка воды (насосные, повысительные станции)","х","х","х"]
[null,null,null,"3.1"]
[null,null,null,"3.2"]
[null,null,null,"…","…"]
[null,null,null,null,"Итого по МО","х",null,null,null,"х","х","х","х","х","х"]
[null,null,null,null,"ИТОГО ПО ОРГАНИЗАЦИИ:"]
[null,null,null,"1","Подъем воды","х",null,null,null,"х","х","х","х","х","х"]
[null,null,null,2,"Очистка воды","х",null,null,null,"х","х","х","х","х","х"]
[null,null,null,3,"Транспортировка воды ","х",null,null,null,"х","х","х","х","х","х"]
[null,null,null,null,"В целом по организации","х",null,null,null,"х","х","х","х","х","х"]
[]
[null,null,null,"Примечание: Данные, предусмотренные организацией в графе 13, должны быть подтверждены расчетами"]
[]
[]
[]
[null,null,null,"М.П."]
[]
[null,null,null,null,"Должность руководителя, подпись",null,"Фамилия, имя, отчество"]
[]
[null,null,null,null,null,"                             "]
[null,null,null,null,"Должность исполнителя, подпись",null,"Фамилия, имя, отчество"]

{"sheet":"расход ээ","index":7,"n_rows":27,"n_cols":10,"rows_kept":27,"cut":false,"hidden":false,"merged":[[26,4,26,5],[4,1,4,7],[5,1,5,7],[6,1,6,7],[23,4,23,5],[3,1,3,9],[7,8,7,9],[7,2,8,2],[7,3,8,3],[7,1,8,1],[7,4,7,5],[7,6,7,7]]}
[null,null,null,null,null,null,null,null,null,"Приложение 1"]
[null,null,null,null,null,null,null,null,null,"Таблица 1.4."]
[]
[null,"Расход электрической энергии на производство и реализацию питьевой воды "]
[]
[]
[]
[null,"№ п/п","Наименование направления расхода электрической энергии","Ед.изм.","2017  год",null,"2018 год",null,"2019 год"]
[null,null,null,null,"Предусмотрено в тарифе","Факт по данным организации","Предусмотрено в тарифе","Ожидаемое исполнение по данным организации","План организации","Принято ЛенРТК"]
[null,1,2,3,4,5,6,7,8,9]
[null,"1","Всего по организации (стр2+стр3)","тыс кВт.ч"]
[null,"2","На технологические нужды - всего, в том числе:","тыс кВт.ч"]
[null,"2.1","Подъем воды","тыс кВт.ч"]
[null,"2.2","Очистка воды","тыс кВт.ч"]
[null,"2.3","Транспортировка воды","тыс кВт.ч"]
[null,"3","На общепроизводственные нужды - всего, в том числе:","тыс кВт.ч"]
[null,"3.1","На электроотопление зданий и сооружений","тыс кВт.ч"]
[null,"3.2","На освещение зданий и сооружений","тыс кВт.ч"]
[null,"3.3","На работу вспомогательного оборудования","тыс кВт.ч"]
[]
[]
[]
[null,"М.П."]
[null,null,"Должность руководителя, подпись",null,"Фамилия, имя, отчество"]
[]
[null,null,null,"                             "]
[null,null,"Должность исполнителя, подпись",null,"Фамилия, имя, отчество"]

{"sheet":"расчет ээ на общепр.нужды","index":8,"n_rows":33,"n_cols":12,"rows_kept":33,"cut":false,"hidden":false,"merged":[[18,1,18,12],[29,8,29,9],[32,8,32,9]]}
[null,null,null,null,null,null,null,null,null,null,null,"Приложение 1"]
[null,null,null,null,null,null,null,null,null,null,null,"Таблица 1.5."]
[]
[]
[]
[]
[]
[null,null,null,null,null,"Расчет потребности в электрической энергии на общепроизводственные нужды "]
[]
[]
[]
[]
[]
[]
[]
[]
[]
[]
[null,"Заполняется организацией в произвольной форме с указанием  оборудования в соответствии с таблицей 1.4. Кроме того, необходимо предоставить расчет расхода электрической энергии, предусмотренного организацией по статьям \"Цеховые расходы\" и \"Общехозяйственные расходы\" (с указанием оборудования, его характеристик, формулы расчета)."]
[]
[]
[]
[]
[]
[]
[]
[]
[]
[null,null,null,null,null,"М.П."]
[null,null,null,null,null,null,"Должность руководителя, подпись",null,"Фамилия, имя, отчество"]
[]
[null,null,null,null,null,null,null,"                             "]
[null,null,null,null,null,null,"Должность исполнителя, подпись",null,"Фамилия, имя, отчество"]

{"sheet":"Хар-ка водопров сетей","index":9,"n_rows":37,"n_cols":11,"rows_kept":37,"cut":false,"hidden":false,"merged":[[3,2,3,10],[6,2,6,10],[10,3,10,4],[11,2,12,2],[11,3,16,3],[7,2,8,2],[7,5,8,5],[7,6,7,10],[7,3,8,3],[7,4,8,4],[33,5,33,7],[17,2,18,2],[36,5,36,7],[25,3,25,4],[26,3,26,4],[17,3,22,3],[23,2,23,4],[24,2,24,4],[33,3,33,4],[36,3,36,4]]}
[null,null,null,null,null,null,null,null,null,null,"Приложение 1"]
[null,null,null,null,null,null,null,null,null,null,"Таблица 1.6."]
[]
[null,null,"Характеристика водопроводных сетей"]
[]
[]
[]
[null,null,"№ п/п","Наименование",null,"Всего","в том числе по поселениям"]
[null,null,null,null,null,null,"МО 1","МО 2","МО 3","МО 4","…"]
[null,null,1,2,3,4,5,6,7,8,9]
[null,null,1,"Водопроводные сети",null,"х","х","х","х","х","х"]
[null,null,"1.1","Протяженность сетей","Итого, км"]
[null,null,null,null,"в том числе:","х","х","х","х","х","х"]
[null,null,"1.1.1",null,"диаметр от 50мм до 250мм"]
[null,null,"1.1.2",null,"диаметр от 250мм до 500мм"]
[null,null,"1.1.3",null,"диаметр от 500мм до 1000мм"]
[null,null,"1.1.4",null,"диаметр от 1000мм"]
[null,null,"1.2","Протяженность сетей, нуждающихся в замене","Итого, км"]
[null,null,null,null,"в том числе:","х","х","х","х","х","х"]
[null,null,"1.2.1",null,"диаметр от 50мм до 250мм"]
[null,null,"1.2.2",null,"диаметр от 250мм до 500мм"]
[null,null,"1.2.3",null,"диаметр от 500мм до 1000мм"]
[null,null,"1.2.4",null,"диаметр от 1000мм"]
[null,null,"ВСЕГО водопроводных сетей,"]
[null,null,"в том числе нуждающихся в замене"]
[null,null,2,"Число колодцев/автономных водоразборных колонок (для нецентрализованного водоснабжения) (ед.)"]
[null,null,"2.1","в том числе нуждающихся в замене (ед.)"]
[]
[]
[]
[]
[]
[null,null,"М.П."]
[null,null,null,"Должность руководителя, подпись",null,"Фамилия, имя, отчество"]
[]
[null,null,null,null,"                             "]
[null,null,null,"Должность исполнителя, подпись",null,"Фамилия, имя, отчество"]

{"sheet":"Покупка воды","index":10,"n_rows":58,"n_cols":10,"rows_kept":58,"cut":false,"hidden":false,"merged":[[3,0,3,9],[54,1,54,2],[57,1,57,2],[10,1,10,9],[28,1,28,9],[36,1,36,9],[44,1,44,9],[54,3,54,4],[6,6,6,7],[6,8,6,9],[7,4,8,4],[7,5,8,5],[7,6,8,6],[7,7,8,7],[57,3,57,4],[7,8,8,8],[7,9,8,9],[5,0,8,0],[5,1,8,1],[5,2,8,2],[6,4,6,5],[5,3,5,9],[6,3,8,3]]}
[null,null,null,null,null,null,null,null,null,"Приложение 1"]
[null,null,null,null,null,null,null,null,null,"Таблица 1.7."]
[]
["Расчет объема покупки  воды, полученной от других поставщиков"]
[]
["№   п/п","Наименование поставщика","№ и дата договора","Объем воды, тыс. м3"]
[null,null,null,"Предусмотрено в договоре","2017 год",null,"2018 год",null,"2019 год"]
[null,null,null,null,"Предусмотрено в тарифе","Факт по данным организации","Предусмотрено в тарифе","Ожидаемое исполнение по данным организации","План организации","Принято ЛенРТК"]
[]
[1,2,3,4,5,6,7,8,9,10]
[".","МО 1 _____________________________________________________"]
["1.","Поставщик 1"]
[" 1.1","Получено воды, всего, в том числе:"]
[" 1.1.1","на собственные (технологические) нужды, потери воды в сетях, нужды собственных подразделений (цехов), производственно-хозяйственные нужды "]
[" 1.1.2","товарной воды, всего, в том числе:"]
[" 1.1.2.1","населению, управляющим компаниям, ТСЖ и др. (по населению)"]
[" 1 1.2.2","бюджетным потребителям"]
[" 1.1.2.3","иным потребителям"]
[]
[" 2.","Поставщик 2"]
[" 2.1","Получено воды, всего, в том числе:"]
["2.1.1","на собственные (технологические) нужды, потери воды в сетях, нужды собственных подразделений (цехов), производственно-хозяйственные нужды "]
["2.1.2","товарной воды, всего, в том числе:"]
["2.1.2.1","населению, управляющим компаниям, ТСЖ и др. (по населению)"]
["2.1.2.2","бюджетным потребителям"]
["2.1.2.3","иным потребителям"]
[]
["3.","и т.д."]
[null,"МО 2 _____________________________________________________"]
[]
[]
[]
[]
[]
[]
[]
[null,"МО 3 _____________________________________________________"]
[]
[]
[]
[]
[]
[]
[]
[null,"ИТОГО  ПО  ОРГАНИЗАЦИИ"]
[null,"Получено воды,  всего, в том числе:"]
[null,"на собственные (технологические) нужды, потери воды в сетях, нужды собственных подразделений (цехов), производственно-хозяйственные нужды "]
[null,"товарной воды, всего, в том числе:"]
[null,"населению"]
[null,"бюджетным потребителям"]
[null,"иным потребителям"]
[]
[]
["М.П."]
[null,"Должность руководителя, подпись",null,"Фамилия, имя, отчество"]
[]
[null,null,"                             "]
[null,"Должность исполнителя, подпись",null,"Фамилия, имя, отчество"]

{"sheet":"Транспортировка воды","index":11,"n_rows":41,"n_cols":10,"rows_kept":41,"cut":false,"hidden":false,"merged":[[3,0,3,9],[5,0,8,0],[5,1,8,1],[5,2,8,2],[5,3,5,9],[6,3,8,3],[6,4,6,5],[6,6,6,7],[6,8,6,9],[7,4,8,4],[40,1,40,2],[40,3,40,4],[7,5,8,5],[7,6,8,6],[7,7,8,7],[16,1,16,9],[24,1,24,9],[32,1,32,9],[37,1,37,2],[37,3,37,4],[7,8,8,8],[7,9,8,9],[10,1,10,9]]}
[null,null,null,null,null,null,null,null,null,"Приложение 1"]
[null,null,null,null,null,null,null,null,null,"Таблица 1.8."]
[]
["Расчет объема  воды, передаваемой на транспортировку другим организациям"]
[]
["№   п/п","Наименование организации, осуществляемой транспортировку воды","№ и дата договора","Объем воды, тыс. м3"]
[null,null,null,"Предусмотрено в договоре","2017 год",null,"2018 год",null,"2019 год"]
[null,null,null,null,"Предусмотрено в тарифе","Факт по данным организации","Предусмотрено в тарифе","Ожидаемое исполнение по данным организации","План организации","Принято ЛенРТК"]
[]
[1,2,3,4,5,6,7,8,9,10]
[".","МО 1 _____________________________________________________"]
["1.","Организация 1"]
[" 1.1","Передано воды для транспортировки, всего"]
[" 2.","Организация 2"]
[" 2.1",{"$f":"B13","v":"Передано воды для транспортировки, всего"}]
["3.","и т.д."]
[null,"МО 2 _____________________________________________________"]
[]
[]
[]
[]
[]
[]
[]
[null,"МО 3 _____________________________________________________"]
[]
[]
[]
[]
[]
[]
[]
[null,"ИТОГО  ПО  ОРГАНИЗАЦИИ"]
[null,{"$f":"B13","v":"Передано воды для транспортировки, всего"}]
[]
[]
["М.П."]
[null,"Должность руководителя, подпись",null,"Фамилия, имя, отчество"]
[]
[null,null,"                             "]
[null,"Должность исполнителя, подпись",null,"Фамилия, имя, отчество"]

{"sheet":"вода на собст.нужды","index":12,"n_rows":26,"n_cols":8,"rows_kept":26,"cut":false,"hidden":false,"merged":[[10,7,11,7],[9,0,11,0],[9,1,11,1],[9,2,9,3],[9,4,9,5],[9,6,9,7],[10,2,11,2],[10,3,11,3],[6,1,6,6],[22,1,22,2],[22,3,22,4],[25,1,25,2],[25,3,25,4],[10,4,11,4],[10,5,11,5],[10,6,11,6]]}
[null,null,null,null,null,null,null,"Приложение1"]
[null,null,null,null,null,null,null,"Таблица 1.9."]
[]
[]
[]
[]
[null,"Расчет (обоснование) расхода воды на нужды собственных подразделений (цехов)"]
[]
[null,null,null,null,null,null,null,"(тыс.м3)"]
[" № п/п","Наименование показателя","2017 год",null,"2018 год",null,"2019 год"]
[null,null,"Предусмотрено в тарифе","Факт по данным организации","Предусмотрено в тарифе","Ожидаемое исполнение по данным организации","План организации","Принято ЛенРТК"]
[]
[1,2,5,6,7,8,9,10]
["1.","Расход воды на нужды собственных подразделений (цехов) - всего:"]
[null,"в том числе:"]
["1.1."," - на нужды основного производства (указать вид деятельности)"]
[" 1.2."," -  на производство тепловой энергии для нужд отопления и горячего водоснабжения"]
[" 1.3."," - на прочую деятельность (указать виды деятельности)"]
[]
[]
[]
["М.П."]
[null,"Должность руководителя, подпись",null,"Фамилия, имя, отчество"]
[]
[null,null,"                             "]
[null,"Должность исполнителя, подпись",null,"Фамилия, имя, отчество"]

{"sheet":"Реализация услуг","index":13,"n_rows":67,"n_cols":10,"rows_kept":67,"cut":false,"hidden":false,"merged":[[3,1,3,8],[6,0,10,0],[63,4,63,5],[8,8,10,8],[50,1,50,9],[8,7,10,7],[66,4,66,5],[7,4,7,5],[8,4,10,4],[8,5,10,5],[31,1,31,9],[12,1,12,9],[6,1,10,1],[6,2,10,2],[7,6,7,7],[7,8,7,9],[8,6,10,6],[6,3,6,9],[8,9,10,9],[7,3,10,3]]}
[null,null,null,null,null,null,null,null,null,"Приложение 1"]
[null,null,null,null,null,null,null,null,null,"Таблица 1.10."]
[]
[null,"Объемы реализации  потребителям питьевой воды"]
[]
[]
["№ пп","Наименование потребителей","№ и дата договора","Объем отпуска (тыс.м3)"]
[null,null,null,"Предусмотрено в договоре","2017 год",null,"2018 год",null,"2019 год"]
[null,null,null,null,"предусмотрено в тарифе","факт по данным организации","предусмотрено в тарифе","ожидаемое исполнение по данным организации","план организации","принято ЛенРТК"]
[]
[]
[1,2,3,4,5,6,7,8,9,10]
[null,"Муниципальный район: МО 1 ____________________"]
["1.","Всего, в том числе:"]
["1.1.","Управляющие компании, ТСЖ и др. (по населению)"]
["1.1.1.","Потребитель 1"]
["1.1.2.","Потребитель 2"]
["…","…"]
["1.2.","Население"]
["1.3.","Бюджетные организации "]
["1.3.1.","Потребитель 1"]
["1.3.2.","Потребитель 2"]
["…","…"]
["1.4.","Предприятия, оказывающие услуги водоснабжения"]
["1.4.1.","Потребитель 1"]
["1.4.2.","Потребитель 2"]
["…","…"]
["1.5.","Иные потребители"]
["1.5.1.","Потребитель 1"]
["1.5.2.","Потребитель 2"]
["…","…"]
[null,"Муниципальный район: МО 2 ____________________"]
["2.","Всего, в том числе:"]
["2.1.","Управляющие компании, ТСЖ и др. (по населению)"]
["2.1.1.","Потребитель 1"]
["2.1.2.","Потребитель 2"]
["…","…"]
["2.2.","Население"]
["2.3.","Бюджетные организации "]
["2.3.1.","Потребитель 1"]
["2.3.2.","Потребитель 2"]
["…","…"]
["2.4.","Предприятия, оказывающие услуги водоснабжения"]
["2.4.1.","Потребитель 1"]
["2.4.2.","Потребитель 2"]
["…","…"]
["2.5.","Иные потребители"]
["2.5.1.","Потребитель 1"]
["2.5.2.","Потребитель 2"]
["…","…"]
[null,"и т.д."]
[null,"…"]
[]
[null,"Всего по организации, в том числе:"]
[null,"Управляющие компании, ТСЖ и др. (по населению)"]
[null,"Население"]
[null,"Бюджетные организации "]
[null,"Предприятия, оказывающие услуги водоснабжения"]
[null,"Иные потребители"]
[]
[]
[]
["М.П."]
[null,"Должность руководителя, подпись",null,null,"Фамилия, имя, отчество"]
[]
[null,null,"                             "]
[null,"Должность исполнителя, подпись",null,null,"Фамилия, имя, отчество"]

{"sheet":"Расчет потребления населением","index":14,"n_rows":101,"n_cols":5,"rows_kept":101,"cut":false,"hidden":false,"merged":[[101,2,101,4],[5,0,5,4],[9,1,9,4],[85,1,85,4],[87,1,87,4],[101,0,101,1],[97,3,97,4],[100,3,100,4]]}
[null,null,null,null,"Приложение 1"]
[null,null,null,null,"Таблица 1.11."]
[]
[]
[]
["Расчет потребления питьевой воды населением на 2019 год"]
[]
[]
["№ п/п","Виды благоустройства","Норматив потребления, м3/чел./месяц","Количество пользователей, чел.","Потребление в год, тыс.м3"]
[" I","      Муниципальный район: МО 1___________________________________"]
[" 1.","Дома с централизованным (нецентрализованным) горячим водоснабжением, оборудованные:"]
[" 1.1.","ваннами от 1650 до 1700 мм, умывальниками, душами, мойками"]
[null,"а) по индивидуальным приборам учета","х"]
[null,"б) по нормативу"]
[null,"в) общедомовые нужды","х","х"]
["1.2.","ваннами от 1500 до 1550 мм, умывальниками, душами, мойками"]
[null,"а) по индивидуальным приборам учета","х"]
[null,"б) по нормативу"]
[null,"в) общедомовые нужды","х","х"]
[" 1.3","сидячими ваннами (1200 мм), душами, умывальниками, мойками"]
[null,"а) по индивидуальным приборам учета","х"]
[null,"б) по нормативу"]
[null,"в) общедомовые нужды","х","х"]
[" 1.4","умывальниками, душами, мойками, без ванны"]
[null,"а) по индивидуальным приборам учета","х"]
[null,"б) по нормативу"]
[null,"в) общедомовые нужды","х","х"]
[" 1.5","умывальниками, мойками, имеющими  ванну без душа"]
[null,"а) по индивидуальным приборам учета","х"]
[null,"б) по нормативу"]
[null,"в) общедомовые нужды","х","х"]
[" 1.6","умывальниками, мойками, без централизованной канализации"]
[null,"а) по индивидуальным приборам учета"]
[null,"б) по нормативу"]
[null,"в) общедомовые нужды"]
[" 2.","Дома с водонагревателями, оборудованные:"]
[" 2.1","ваннами от 1650 до 1700 мм, умывальниками, душами, мойками"]
[null,"а) по индивидуальным приборам учета","х"]
[null,"б) по нормативу"]
[null,"в) общедомовые нужды","х","х"]
[" 2.2","ваннами от 1500 до 1550 мм, умывальниками, душами, мойками"]
[null,"а) по индивидуальным приборам учета","х"]
[null,"б) по нормативу"]
[null,"в) общедомовые нужды","х","х"]
[" 2.3","сидячими ваннами (1200 мм), душами, умывальниками, мойками"]
[null,"а) по индивидуальным приборам учета","х"]
[null,"б) по нормативу"]
[null,"в) общедомовые нужды","х","х"]
[" 2.4","умывальниками, душами, мойками, без ванны"]
[null,"а) по индивидуальным приборам учета","х"]
[null,"б) по нормативу"]
[null,"в) общедомовые нужды","х","х"]
[" 3.","Дома, оборудованные ваннами, водопроводом, канализацией и водонагревателями на твердом топливе"]
[null,"а) по индивидуальным приборам учета","х"]
[null,"б) по нормативу"]
[null,"в) общедомовые нужды","х","х"]
[" 4.","Дома без ванн, с водопроводом, канализацией и газоснабжением"]
[null,"а) по индивидуальным приборам учета","х"]
[null,"б) по нормативу"]
[null,"в) общедомовые нужды","х","х"]
[" 5.","Дома без ванн, с водопроводом и канализацией "]
[null,"а) по индивидуальным приборам учета","х"]
[null,"б) по нормативу"]
[null,"в) общедомовые нужды","х","х"]
[" 6.","Дома без ванн, с водопроводом, газоснабжением, без централизованной канализации"]
[null,"а) по индивидуальным приборам учета","х"]
[null,"б) по нормативу"]
[null,"в) общедомовые нужды","х","х"]
[" 7.","Дома без ванн, с водопроводом, без централизованной канализации"]
[null,"а) по индивидуальным приборам учета","х"]
[null,"б) по нормативу"]
[null,"в) общедомовые нужды","х","х"]
[" 8.","Дома с водопользованием из уличных водоразборных колонок"]
[null,"а) по индивидуальным приборам учета","х"]
[null,"б) по нормативу"]
[null,"в) общедомовые нужды","х","х"]
[" 9.","Общежития с общими душевыми"]
[null,"а) по индивидуальным приборам учета","х"]
[null,"б) по нормативу"]
[null,"в) общедомовые нужды","х","х"]
[" 10.","Общежития с душами при всех жилых комнатах"]
[null,"а) по индивидуальным приборам учета","х"]
[null,"б) по нормативу"]
[null,"в) общедомовые нужды","х","х"]
[null,"ИТОГО по МО 1"]
["II","      Муниципальный район: МО 2 ___________________________________"]
[null,"ИТОГО по МО 2"]
["III","      Муниципальный район: МО 3 ___________________________________"]
[null,"ИТОГО по МО 3"]
["и т.д."]
[null,"ВСЕГО  ПО  ОРГАНИЗАЦИИ","х"]
[null,"в том числе:"]
[null," - управляющие компании, ТСЖ и др. (по населению)","х"]
[null," - население","х"]
[]
[]
["М.П."]
[null,"Должность руководителя, подпись",null,"Фамилия, имя, отчество"]
[]
[null,null,"                             "]
[null,"Должность исполнителя, подпись",null,"Фамилия, имя, отчество"]

{"sheet":"Расчет на полив и др.","index":15,"n_rows":34,"n_cols":6,"rows_kept":34,"cut":false,"hidden":false,"merged":[[34,0,34,1],[34,3,34,5],[6,0,6,5],[11,1,11,5],[15,1,15,5],[17,1,17,5],[30,4,30,5],[33,4,33,5]]}
[null,null,null,null,null,"Приложение 1"]
[null,null,null,null,null,"Таблица 1.12."]
[]
[]
[]
[]
["Расчет потребления питьевой воды при использовании земельных участков и надворных построек на 2019 год"]
[]
[]
[]
["№ п/п","Направление использования коммунальной услуги ","Единица измерения","Норматив потребления","Количественный показатель","Потребление в год, тыс.м3"]
[" I","      Муниципальный район: МО 1___________________________________"]
[" 1.","Полив земельного участка","куб.м на 1 кв.м земельного участка в месяц",null,"*"]
[" 2.","Водоснабжение и приготовление пищи для домашнего скота и птицы",null,null,"**"]
[null,"ИТОГО по МО 1"]
["II","      Муниципальный район: МО 2 ___________________________________"]
[null,"ИТОГО по МО 2"]
["III","      Муниципальный район: МО 3 ___________________________________"]
[null,"ИТОГО по МО 3"]
["и т.д."]
[null,"ВСЕГО  ПО  ОРГАНИЗАЦИИ",null,"х"]
[null,"в том числе:"]
[null," - управляющие компании, ТСЖ и др. (по населению)",null,"х"]
[null," - население",null,"х"]
[]
["* указывается площадь земельного участка"]
["** указывается количество голов домашего скота и птицы"]
[]
[]
["М.П."]
[null,"Должность руководителя, подпись",null,null,"Фамилия, имя, отчество"]
[]
[null,null,null,"                             "]
[null,"Должность исполнителя, подпись",null,null,"Фамилия, имя, отчество"]

{"sheet":"показатель надежности","index":16,"n_rows":16,"n_cols":6,"rows_kept":16,"cut":false,"hidden":false,"merged":[[12,0,12,4],[7,0,7,5],[9,0,9,5],[4,0,4,5]]}
[null,null,null,null,null,"Приложение 1"]
[null,null,null,null,null,"Таблица 1.13"]
[]
[]
["Плановые значения показателей надежности, качества и энергетической эффективности объектов централизованных систем водоснабжения"]
[]
["№ п/п","Наименование показателя","Ед.измерения","Факт 2017 года","Ожидаемое исполнение по данным организации","План на  2019 год"]
["1. Показатели надежности и бесперебойности "]
["1.","Количество зафиксированных перерывов в  холодной воды, возникших в результате аварий, повреждений и иных технологических нарушений на объектах центральной системы холодного водоснабжения,принадлежащих организации,осуществляющей холодное водоснабжение, в расчёте на протяженность водопроводной сети"," ед. в год/км"]
["2. Показатели качества питьевой воды"]
["1.","Доля проб питьевой воды, не соответствующих установленным требованиям, в общем объёме проб, отобранных по результатам производственного контроля качества питьевой воды"," %"]
["2.","Доля проб питьевой воды в распределительной водопроводной сети, не соответствующих установленным требованиям, в общем объёме проб, отобранных по результатам производственного контроля качества питьевой воды"," %"]
["3. Показатели энергетической эффективности использования ресурсов"]
["1.","Доля потерь воды в ЦС ВС при транспортировке в общем объёме воды, поданной в водопроводную сеть"," %"]
["2.","Удельный расход ЭЭ, потребляемой в технологическом процессе подготовки питьевой воды,на еденицу объема воды,отпускаемой в сеть","кВт*ч/куб.м"]
["3.","Удельный расход ЭЭ, потребляемой в технологическом процессе транспортировки  питьевой воды,на еденицу объематранспортируемой  воды","кВт*ч/куб.м"]

{"sheet":"План мероприятий 2017","index":17,"n_rows":51,"n_cols":15,"rows_kept":51,"cut":false,"hidden":false,"merged":[[50,2,50,3],[1,9,1,10],[2,9,2,11],[5,9,5,10],[16,8,17,9],[16,10,17,11],[12,1,12,14],[14,13,18,13],[14,14,18,14],[16,5,18,5],[16,6,18,6],[50,4,50,6],[20,1,20,14],[21,1,21,14],[25,1,25,4],[40,1,40,4],[41,1,41,4],[47,4,47,6],[14,4,18,4],[14,5,15,6],[26,1,26,14],[30,1,30,4],[31,1,31,14],[35,1,35,4],[36,1,36,14],[47,2,47,3],[14,7,18,7],[14,8,15,11],[14,12,18,12],[1,1,1,2],[2,1,2,3],[5,1,5,2],[14,1,18,1],[14,2,18,2],[14,3,18,3]]}
[null,null,null,null,null,null,null,null,null,null,null,null,null,null,"Приложение 2"]
[null,"Согласовано:",null,null,null,null,null,null,null,"Согласовано:*",null,null,null,null,"Таблица 2.1"]
[null,"Глава администрации МО",null,null,null,null,null,null,null,"Руководитель "]
[]
[]
[null,"ФИО",null,"подпись",null,null,null,null,null,"ФИО",null,"подпись"]
[]
["МП","\"           \"","                                    2018 год",null,null,null,null,null,"МП","\"           \"","                                2016 год",{"$f":"C8","v":"                                    2018 год"}]
[]
[]
[]
[]
[null,"План мероприятий по повышению эффективности деятельности и энергосбережению на 2017 год"]
[]
[null,"№ п/п","Наименование мероприятия","Инвентарный номер и адрес объекта ","Стадия технологического цикла","Затраты на реализацию мероприятий (тыс.руб. без НДС)",null,"Источники финансирования","Объем работ в натуральных показателях",null,null,null,"Вид ремонта","Исполнитель работ (наименование организации, № и дата договора)","Примечание"]
[]
[null,null,null,null,null,"план","факт",null,"план",null,"факт"]
[]
[null,null,null,null,null,null,null,null,"Ед. изм.","Значение (количество)","Ед. изм.","Значение (количество)"]
[null,1,2,3,4,5,6,7,8,9,10,11,12,13,14]
[null,"МО 1______________________________________________________"]
[null,"I раздел. Мероприятия по ремонту (капитальный, текущий и др)"]
[null,"1.1","Мероприятие 1"]
[null,"1.2","Мероприятие 2"]
[null,"…","…"]
[null,"Итого по I разделу",null,null,null,null,null,"х","х","х","х","х","х","х","х"]
[null,"II раздел. Мероприятия по реконструкции "]
[null,"2.1","Мероприятие 1"]
[null,"2.2","Мероприятие 2"]
[null,"…","…"]
[null,"Итого по II разделу",null,null,null,null,null,"х","х","х","х","х","х","х","х"]
[null,"III раздел.  Иные мероприятия, направленные на совершенствование организации производства"]
[null,"3.1","Мероприятие 1"]
[null,"3.2","Мероприятие 2"]
[null,"…","…"]
[null,"Итого по III разделу",null,null,null,null,null,"х","х","х","х","х","х","х","х"]
[null,"IV раздел. Мероприятия по энергосбережению и повышению энергетической эффективности (в соответствии с утвержденной Программой энергосбережения и повышения энергоэффективности)"]
[null,"4.1","Мероприятие 1"]
[null,"4.2","Мероприятие 2"]
[null,"…","…"]
[null,"Итого по IV разделу",null,null,null,null,null,"х","х","х","х","х","х","х","х"]
[]
[]
[null," *  Согласуется руководителем Арендодателя в случае, если данное требование предусмотрено договорами аренды"]
[]
[]
[null,"М.П."]
[null,null,"Должность руководителя, подпись",null,"Фамилия, имя, отчество"]
[]
[null,null,null,"                             "]
[null,null,"Должность исполнителя, подпись",null,"Фамилия, имя, отчество"]

{"sheet":"План мероприятий 2018 ","index":18,"n_rows":51,"n_cols":15,"rows_kept":51,"cut":false,"hidden":false,"merged":[[14,13,18,13],[14,14,18,14],[16,5,18,5],[16,6,18,6],[1,9,1,10],[2,9,2,11],[5,9,5,10],[16,8,17,9],[16,10,17,11],[12,1,12,14],[14,4,18,4],[14,5,15,6],[14,7,18,7],[14,8,15,11],[14,12,18,12],[1,1,1,2],[2,1,2,3],[5,1,5,2],[14,1,18,1],[14,2,18,2],[14,3,18,3],[50,4,50,6],[20,1,20,14],[21,1,21,14],[25,1,25,4],[26,1,26,14],[30,1,30,4],[31,1,31,14],[35,1,35,4],[36,1,36,14],[40,1,40,4],[41,1,41,4],[47,4,47,6],[47,2,47,3],[50,2,50,3]]}
[null,null,null,null,null,null,null,null,null,null,null,null,null,null,"Приложение 2"]
[null,"Согласовано:",null,null,null,null,null,null,null,"Согласовано:*",null,null,null,null,"Таблица 2.2"]
[null,"Глава администрации МО",null,null,null,null,null,null,null,"Руководитель "]
[]
[]
[null,"ФИО",null,"подпись",null,null,null,null,null,"ФИО",null,"подпись"]
[]
["МП","\"           \"","                                    2018 год",null,null,null,null,null,"МП","\"           \"","                        2016 год","2018 год"]
[]
[]
[]
[]
[null,"План мероприятий по повышению эффективности деятельности и энергосбережению на 2018 год"]
[]
[null,"№ п/п","Наименование мероприятия","Инвентарный номер и адрес объекта ","Стадия технологического цикла","Затраты на реализацию мероприятий (тыс.руб.без НДС)",null,"Источники финансирования","Объем работ в натуральных показателях",null,null,null,"Вид ремонта","Исполнитель работ (наименование организации, № и дата договора)","Примечание"]
[]
[null,null,null,null,null,"план","ожидаемое",null,"план",null,"ожидаемое"]
[]
[null,null,null,null,null,null,null,null,"Ед. изм.","Значение (количество)","Ед. изм.","Значение (количество)"]
[null,1,2,3,4,5,6,7,8,9,10,11,12,13,14]
[null,"МО 1 ___________________________________________________________________________"]
[null,"I раздел. Мероприятия по ремонту (капитальный, текущий и др)"]
[null,"1.1","Мероприятие 1"]
[null,"1.2","Мероприятие 2"]
[null,"…","…"]
[null,"Итого по I разделу",null,null,null,null,null,"х","х","х","х","х","х","х","х"]
[null,"II раздел. Мероприятия по реконструкции "]
[null,"2.1","Мероприятие 1",null,null,null,null,null,null,null,null,null,"х"]
[null,"2.2","Мероприятие 2"]
[null,"…","…"]
[null,"Итого по II разделу",null,null,null,null,null,"х","х","х","х","х","х","х","х"]
[null,"III раздел.  Иные мероприятия, направленные на совершенствование организации производства"]
[null,"3.1","Мероприятие 1",null,null,null,null,null,null,null,null,null,"х"]
[null,"3.2","Мероприятие 2"]
[null,"…","…"]
[null,"Итого по III разделу",null,null,null,null,null,"х","х","х","х","х","х","х","х"]
[null,"IV раздел. Мероприятия по энергосбережению и повышению энергетической эффективности (в соответствии с  Программой энергосбережения и повышения энергоэффективности)"]
[null,"4.1","Мероприятие 1"]
[null,"4.2","Мероприятие 2"]
[null,"…","…"]
[null,"Итого по IV разделу",null,null,null,null,null,"х","х","х","х","х","х","х","х"]
[]
[]
[null," *  Согласуется руководителем Арендодателя в случае, если данное требование предусмотрено договорами аренды"]
[]
[]
[null,"М.П."]
[null,null,"Должность руководителя, подпись",null,"Фамилия, имя, отчество"]
[]
[null,null,null,"                             "]
[null,null,"Должность исполнителя, подпись",null,"Фамилия, имя, отчество"]

{"sheet":"План мероприятий 2019","index":19,"n_rows":51,"n_cols":12,"rows_kept":51,"cut":false,"hidden":false,"merged":[[13,1,13,11],[21,1,21,11],[15,7,18,8],[2,1,2,2],[3,1,3,3],[6,1,6,2],[15,1,19,1],[15,2,19,2],[15,3,19,3],[15,4,19,4],[15,6,19,6],[2,7,2,8],[3,7,3,9],[6,7,6,8],[15,9,19,9],[15,10,19,10],[47,2,47,3],[47,4,47,6],[50,2,50,3],[50,4,50,6],[15,5,19,5],[22,1,22,11],[26,1,26,4],[27,1,27,11],[31,1,31,4],[32,1,32,11],[36,1,36,4],[37,1,37,11],[41,1,41,4],[42,1,42,4],[15,11,19,11]]}
[null,null,null,null,null,null,null,null,null,null,null,"Приложение 2"]
[null,null,null,null,null,null,null,null,null,null,null,"Таблица 2.3"]
[null,"Согласовано:",null,null,null,null,null,"Согласовано:*"]
[null,"Глава администрации МО",null,null,null,null,null,"Руководитель "]
[]
[]
[null,"ФИО",null,"подпись",null,null,null,"ФИО",null,"подпись"]
[]
["МП","\"           \"","                                    2018 год",null,null,null,"МП","\"           \"","                                      2016 год","2018 год"]
[]
[]
[]
[]
[null,"План мероприятий по повышению эффективности деятельности и энергосбережению на 2019 год"]
[]
[null,"№ п/п","Наименование мероприятия","Инвентарный номер и адрес объекта ","Стадия технологического цикла","Затраты на реализацию мероприятий (тыс.руб.без НДС)","Источники финансирования","Объем работ в натуральных показателях",null,"Вид ремонта","Исполнитель работ (наименование организации, № и дата договора)","Примечание"]
[]
[]
[]
[null,null,null,null,null,null,null,"Ед. изм.","Значение (количество)"]
[null,1,2,3,4,5,"6",7,8,9,10,11]
[null,"МО 1 _________________________________________________________________________"]
[null,"I раздел. Мероприятия по ремонту (капитальный, текущий и др)"]
[null,"1.1","Мероприятие 1"]
[null,"1.2","Мероприятие 2"]
[null,"…","…"]
[null,"Итого по I разделу",null,null,null,null,"х","х","х","х","х","х"]
[null,"II раздел. Мероприятия по реконструкции "]
[null,"2.1","Мероприятие 1",null,null,null,null,null,null,"х"]
[null,"2.2","Мероприятие 2"]
[null,"…","…"]
[null,"Итого по II разделу",null,null,null,null,"х","х","х","х","х","х"]
[null,"III раздел.  Иные мероприятия, направленные на совершенствование организации производства"]
[null,"3.1","Мероприятие 1",null,null,null,null,null,null,"х"]
[null,"3.2","Мероприятие 2"]
[null,"…","…"]
[null,"Итого по III разделу",null,null,null,null,"х","х","х","х","х","х"]
[null,"IV раздел. Мероприятия по энергосбережению и повышению энергетической эффективности (в соответствии с Программой энергосбережения и повышения энергоэфективности)"]
[null,"4.1","Мероприятие 1"]
[null,"4.2","Мероприятие 2"]
[null,"…","…"]
[null,"Итого по IV разделу",null,null,null,null,"х","х","х","х","х","х"]
[]
[]
[null," *  Согласуется руководителем Арендодателя в случае, если данное требование предусмотрено договорами аренды"]
[]
[null,"М.П."]
[null,null,"Должность руководителя, подпись",null,"Фамилия, имя, отчество"]
[]
[null,null,null,"                             "]
[null,null,"Должность исполнителя, подпись",null,"Фамилия, имя, отчество"]